{"text_format":"1","workbook":"xlsx","n_sheets":2,"sheets":["N3_Practice_1_Q's","N3_Practice_1_Q's (2)"],"not_rendered":{"charts":4,"images":16,"macros":1,"external_links":0,"defined_names":2,"comments":0,"pivot_tables":0},"unopened":[],"bounds":{"document_bytes":16777216,"sheet_cells":100000,"rows_first":2000,"rows_last":500,"rows_between":2000,"halvings":0,"cell_chars":16384,"cell_head_chars":4096},"cells_cut":0,"cells_raw":0,"read":"whole","date_system":"1900"}

{"sheet":"N3_Practice_1_Q's","index":0,"n_rows":154,"n_cols":77,"rows_kept":154,"cut":false,"hidden":false,"merged":[[153,33,153,36],[124,33,124,36],[125,60,125,63],[113,72,113,75],[114,72,114,75],[115,72,115,75],[116,72,116,75],[117,72,117,75],[118,72,118,75],[119,72,119,75],[120,72,120,75],[121,72,121,75],[122,72,122,75],[123,72,123,75],[124,72,124,75],[125,72,125,75],[126,56,126,59],[126,60,126,63],[126,68,126,71],[124,60,124,63],[126,72,126,75],[115,19,115,22],[122,60,122,63],[123,60,123,63],[120,60,120,63],[121,60,121,63],[118,60,118,63],[119,60,119,63],[122,33,122,36],[116,23,116,26],[117,23,117,26],[118,23,118,26],[118,19,118,22],[116,19,116,22],[117,19,117,22],[115,23,115,26],[116,60,116,63],[1,1,5,42],[45,33,45,36],[65,33,65,36],[21,33,21,36],[27,33,27,36],[28,33,28,36],[39,33,39,36],[9,33,9,36],[33,33,33,36],[15,33,15,36],[71,33,71,36],[72,33,72,36],[96,33,96,36],[102,33,102,36],[119,11,119,14],[119,15,119,18],[119,19,119,22],[119,23,119,26],[115,11,115,14],[116,11,116,14],[117,11,117,14],[118,11,118,14],[115,15,115,18],[116,15,116,18],[117,15,117,18],[118,15,118,18],[113,60,113,63],[113,68,113,71],[114,60,114,63],[117,60,117,63],[115,60,115,63]]}
[]
[null,"N3 Numeracy - Practice Questions                                                                                                                                                                                                            Created by Mr.Lafferty@mathsrevision.com "]
[]
[]
[]
[]
[null,null,null,null,null,null,null,null,null,null,null,null,null,null,null,null,null,null,null,null,null,null,null,null,null,null,null,null,null,null,null,null,null,null,null,null,null,null,null,null,null,null,null,null,null,null,null,null,null,null,null,25]
[null,null,null,null,null,null,null,null,null,null,null,null,null,null,null,null,null,null,null,null,null,null,null,null,null,null,null,null,null,null,null,null,null,null,null,null,null,null,null,null,null,null,null,null,null,null,null,null,null,null,null,{"$f":"ROUND(RAND()*(6-1)+1,0)*10","v":20},{"$f":"IF(AZ8=60,25,AZ8)","v":20}]
[null,null,null,{"$f":"\"Q1. Joseph weekly wage is £\"&TEXT(AZ9,0)&\". His brother Luke earns \"&BA8&\"% more than him.\"","v":"Q1. Joseph weekly wage is £1500. His brother Luke earns 20% more than him."},null,null,null,null,null,null,null,null,null,null,null,null,null,null,null,null,null,null,null,null,null,null,null,null,null,null,null,null,null,null,null,null,null,null,null,null,null,null,null,null,null,null,null,null,null,null,null,{"$f":"ROUND(RAND()*(15-3)+3,0)*100","v":1500}]
[null,null,null,null,{"$f":"\" How much does his brother earn each week ?\"","v":" How much does his brother earn each week ?"},null,null,null,null,null,null,null,null,null,null,null,null,null,null,null,null,null,null,null,null,null,null,null,null,null,null,null,"£",null,null,null,null,null,null,null,null,null,null,null,null,null,null,null,null,null,null,{"$f":"AZ9+(BA8/100*AZ9)","v":1800}]
[]
[]
[]
[null,null,null,null,null,null,null,null,null,null,null,null,null,null,null,null,null,null,null,null,null,null,null,null,null,null,null,null,null,null,null,null,null,null,null,null,null,null,null,null,null,null,null,null,null,null,null,null,null,null,null,{"$f":"ROUND(RAND()*(199-115)+115,0)","v":131}]
[null,null,null,{"$f":"\"Q2. The average number of beans in a tin of beans is \"&TEXT(AZ14,0)&\". \"","v":"Q2. The average number of beans in a tin of beans is 131. "},null,null,null,null,null,null,null,null,null,null,null,null,null,null,null,null,null,null,null,null,null,null,null,null,null,null,null,null,null,null,null,null,null,null,null,null,null,null,null,null,null,null,null,null,null,null,null,{"$f":"ROUND(RAND()*(30-12)+12,0)","v":17}]
[null,null,null,null,{"$f":"\" How many beans in \"&AZ15&\" tins ?\"","v":" How many beans in 17 tins ?"},null,null,null,null,null,null,null,null,null,null,null,null,null,null,null,null,null,null,null,null,null,null,null,null,null,null,null,null,null,null,null,null,"beans",null,null,null,null,null,null,null,null,null,null,null,null,null,{"$f":"AZ14*AZ15","v":2227}]
[]
[]
[null,null,null,null,null,null,null,null,null,null,null,null,null,null,null,null,null,null,null,null,null,null,null,null,null,null,null,null,null,null,null,null,null,null,null,null,null,null,null,null,null,null,null,null,null,null,null,null,null,null,null,{"$f":"ROUND(RAND()*(11-4)+4,0)","v":6},{"$f":"ROUND(RAND()*(11-2)+2,0)","v":7}]
[null,null,null,null,null,null,null,null,null,null,null,null,null,null,null,null,null,null,null,null,null,null,null,null,null,null,null,null,null,null,null,null,null,null,null,null,null,null,null,null,null,null,null,null,null,null,null,null,null,null,null,{"$f":"ROUND(RAND()*(59-1)+1,0)","v":18},{"$f":"ROUND(RAND()*(59-1)+1,0)","v":2}]
[null,null,null,{"$f":"\"Q3. Kirsty is going on holiday. She left Edinburgh at \"&AZ21&\". \"","v":"Q3. Kirsty is going on holiday. She left Edinburgh at 06:18. "},null,null,null,null,null,null,null,null,null,null,null,null,null,null,null,null,null,null,null,null,null,null,null,null,null,null,null,null,null,null,null,null,null,null,null,null,null,null,null,null,null,null,null,null,null,null,null,{"$f":"TEXT(TIME(AZ19,AZ20,0),\"hh:mm\")","v":"06:18"},{"$f":"TEXT(TIME(BA19,BA20,0),\"hh:mm\")","v":"07:02"}]
[null,null,null,null,{"$f":"\" The journey took \"&BA19&\" hours and \"&BA20&\" minutes.\"","v":" The journey took 7 hours and 2 minutes."},null,null,null,null,null,null,null,null,null,null,null,null,null,null,null,null,null,null,null,null,null,null,null,null,null,null,null,null,null,null,null,null,null,null,null,null,null,null,null,null,null,null,null,null,null,null,{"$f":"TEXT(AZ21+BA21,\"hh:mm\")","v":"13:20"}]
[null,null,null,null,{"$f":"\"At what time did Kirsty arrive at her destination ?\"","v":"At what time did Kirsty arrive at her destination ?"},null,null,null,null,null,null,null,null,null,null,null,null,null,null,null,null,null,null,null,null,null,null,null,null,null,null,null,null,null,null,null,null,null,null,null,null,null,null,null,null,null,null,null,null,null,null,{"$f":"TEXT(AZ22,\"hh:mm\")","v":"13:20"}]
[]
[null,null,null,null,null,null,null,null,null,null,null,null,null,null,null,null,null,null,null,null,null,null,null,null,null,null,null,null,null,null,null,null,null,null,null,null,null,null,null,null,null,null,null,null,null,null,null,null,null,null,null,{"$f":"ROUND(RAND()*(10-1)+1,0)*0.5","v":3},{"$f":"AZ25*1000","v":3000}]
[null,null,null,null,null,null,null,null,null,null,null,null,null,null,null,null,null,null,null,null,null,null,null,null,null,null,null,null,null,null,null,null,null,null,null,null,null,null,null,null,null,null,null,null,null,null,null,null,null,null,null,{"$f":"ROUND(ROUND(RAND()*(0.8-0.6)+0.6,1)*BA26,-1)","v":700},{"$f":"ROUND(BA25/3,-1)","v":1000}]
[null,null,null,{"$f":"\"Q4. Three different sized bottles of orange juice hold \"&AZ26&\"ml, \"&AZ27&\"ml and \"&BA27&\"ml of juice.\"","v":"Q4. Three different sized bottles of orange juice hold 700ml, 1000ml and 1400ml of juice."},null,null,null,null,null,null,null,null,null,null,null,null,null,null,null,null,null,null,null,null,null,null,null,null,null,null,null,null,null,null,null,null,null,null,null,null,null,null,null,null,null,null,null,null,null,null,null,{"$f":"ROUND(ROUND(RAND()*(1.1-0.9)+0.9,1)*BA26,-1)","v":1000},{"$f":"ROUND(ROUND(RAND()*(1.4-1.2)+1.2,1)*BA26,-1)","v":1400}]
[null,null,null,null,{"$f":"\"Can a \"&AZ25&\" litre bottle of orange juice fill the three smaller bottles of orange juice ?\"","v":"Can a 3 litre bottle of orange juice fill the three smaller bottles of orange juice ?"},null,null,null,null,null,null,null,null,null,null,null,null,null,null,null,null,null,null,null,null,null,null,null,null,null,null,null,null,null,null,null,null,null,null,null,null,null,null,null,null,null,null,null,null,null,null,{"$f":"IF(BA28<=BA25,\"Yes\",\"No\")","v":"No"},{"$f":"AZ26+AZ27+BA27","v":3100}]
[null,null,null,null,null,null,null,null,null,null,null,null,null,null,null,null,null,null,null,null,null,null,null,null,null,null,null,null,null,null,null,null,null,"( Yes or No )"]
[]
[]
[null,null,null,null,null,null,null,null,null,null,null,null,null,null,null,null,null,null,null,null,null,null,null,null,null,null,null,null,null,null,null,null,null,null,null,null,null,null,null,null,null,null,null,null,null,null,null,null,null,null,null,{"$f":"ROUND(RAND()*(30-11)+11,1)*1000","v":19300}]
[null,null,null,{"$f":"\"Q5. Kristofer bought a carvan for £\"&TEXT(AZ32,0)&\". He sold it \"&BA33&\" years later. He made a loss of £\"&BB33&\".\"","v":"Q5. Kristofer bought a carvan for £19300. He sold it 6 years later. He made a loss of £5790."},null,null,null,null,null,null,null,null,null,null,null,null,null,null,null,null,null,null,null,null,null,null,null,null,null,null,null,null,null,null,null,null,null,null,null,null,null,null,null,null,null,null,null,null,null,null,null,{"$f":"ROUND(RAND()*(0.9-0.51)+0.51,2)*AZ32","v":13510},{"$f":"ROUND(RAND()*(6-2)+2,0)","v":6},{"$f":"AZ32-AZ33","v":5790}]
[null,null,null,null,{"$f":"\" How much did he sell it for ?\"","v":" How much did he sell it for ?"},null,null,null,null,null,null,null,null,null,null,null,null,null,null,null,null,null,null,null,null,null,null,null,null,null,null,null,"£",null,null,null,null,null,null,null,null,null,null,null,null,null,null,null,null,null,null,{"$f":"AZ33","v":13510}]
[]
[]
[]
[null,null,null,null,null,null,null,null,null,null,null,null,null,null,null,null,null,null,null,null,null,null,null,null,null,null,null,null,null,null,null,null,null,null,null,null,null,null,null,null,null,null,null,null,null,null,null,null,null,null,null,{"$f":"AZ40*AZ39","v":67.2}]
[null,null,null,{"$f":"\"Q6. A shelf is \"&AZ38&\" cm long. It can hold \"&AZ39&\" identical books.\"","v":"Q6. A shelf is 67.2 cm long. It can hold 8 identical books."},null,null,null,null,null,null,null,null,null,null,null,null,null,null,null,null,null,null,null,null,null,null,null,null,null,null,null,null,null,null,null,null,null,null,null,null,null,null,null,null,null,null,null,null,null,null,null,{"$f":"ROUND(RAND()*(9-4)+4,0)","v":8},{"$f":"ROUND(RAND()*(6-2)+2,0)","v":4},{"$f":"AZ38-AZ39","v":59.2}]
[null,null,null,null,{"$f":"\" What is the width of one book ?\"","v":" What is the width of one book ?"},null,null,null,null,null,null,null,null,null,null,null,null,null,null,null,null,null,null,null,null,null,null,null,null,null,null,null,null,null,null,null,null,"cm",null,null,null,null,null,null,null,null,null,null,null,null,null,{"$f":"ROUND(RAND()*(9-4)+4,1)","v":8.4}]
[]
[]
[null,null,null,null,null,null,null,null,null,null,null,null,null,null,null,null,null,null,null,null,null,null,null,null,null,null,null,null,null,null,null,null,null,null,null,null,null,null,null,null,null,null,null,null,null,null,null,null,null,null,null,null,null,{"$f":"AZ48-AZ44","v":40},{"$f":"BB43/2","v":20}]
[null,null,null,null,null,null,null,null,null,null,null,null,null,null,null,null,null,null,null,null,null,null,null,null,null,null,null,null,null,null,null,null,null,null,null,null,null,null,null,null,null,null,null,null,null,null,null,null,null,null,null,{"$f":"ROUND(RAND()*(7-1)+1,0)*10","v":20},null,{"$f":"ROUND(RAND()*((BC43-1)-2)+2,0)*2+AZ44","v":54},{"$f":"BB44/10","v":5.4}]
[null,null,null,"Q7.  Write down the temperature dispalyed to the nearest 10oF",null,null,null,null,null,null,null,null,null,null,null,null,null,null,null,null,null,null,null,null,null,null,null,null,null,null,null,null,null,null,null,null,null,null,null,null,null,null,null,null,null,null,null,null,null,null,null,{"$f":"AZ44+10","v":30},null,{"$f":"IF((BC44-BC45)=0,BB44+1,BB44)","v":54},{"$f":"TRUNC(BC44)","v":5}]
[null,null,null,null,null,null,null,null,null,null,null,null,null,null,null,null,null,null,null,null,null,null,null,null,null,null,null,null,null,null,null,null,null,null,null,null,null,"oF",null,null,null,null,null,null,null,null,null,null,null,null,null,{"$f":"AZ45+10","v":40}]
[null,null,null,null,null,null,null,null,null,null,null,null,null,null,null,null,null,null,null,null,null,null,null,null,null,null,null,null,null,null,null,null,null,null,null,null,null,null,null,null,null,null,null,null,null,null,null,null,null,null,null,50]
[null,null,null,null,null,null,null,null,null,null,null,null,null,null,null,null,null,null,null,null,null,null,null,null,null,null,null,null,null,null,null,null,null,null,null,null,null,null,null,null,null,null,null,null,null,null,null,null,null,null,null,60,null,{"$f":"ROUND(BB45,-1)","v":50}]
[]
[]
[]
[]
[]
[]
[]
[]
[]
[]
[]
[]
[]
[]
[null,null,null,null,null,null,null,null,null,null,null,null,null,null,null,null,null,null,null,null,null,null,null,null,null,null,null,null,null,null,null,null,null,null,null,null,null,null,null,null,null,null,null,null,null,null,null,null,null,null,null,{"$f":"ROUND(RAND()*(15-6)+6,1)","v":13.1},{"$f":"ROUND(RAND()*(9-3)+3,0)","v":4}]
[null,null,null,null,null,null,null,null,null,null,null,null,null,null,null,null,null,null,null,null,null,null,null,null,null,null,null,null,null,null,null,null,null,null,null,null,null,null,null,null,null,null,null,null,null,null,null,null,null,null,null,{"$f":"ROUNDUP(AZ63*BA63,0)","v":53}]
[null,null,null,{"$f":"\"Q8. Dylan is moving house. He needs to transport \"&AZ64&\" boxes using his van.\"","v":"Q8. Dylan is moving house. He needs to transport 53 boxes using his van."}]
[null,null,null,null,{"$f":"\"  His van can only hold \"&BA63&\" boxes at a time.\"","v":"  His van can only hold 4 boxes at a time."},null,null,null,null,null,null,null,null,null,null,null,null,null,null,null,null,null,null,null,null,null,null,null,null,null,null,null,null,null,null,null,null,"trips",null,null,null,null,null,null,null,null,null,null,null,null,null,{"$f":"ROUNDUP(AZ64/BA63,0)","v":14}]
[null,null,null,null,"  How many trips will Dylan need to make to transport all the boxes to his new home."]
[]
[null,null,null,null,null,null,null,null,null,null,null,null,null,null,null,null,null,null,null,null,null,null,null,null,null,null,null,null,null,null,null,null,null,null,null,null,null,null,null,null,null,null,null,null,null,null,null,null,null,null,null,{"$f":"ROUND(RAND()*(30-13)+13,0)","v":29},{"$f":"ROUND(RAND()*(2-1)+1,0)","v":2},{"$f":"AZ69/BA69","v":14.5},{"$f":"ROUND(RAND()*(1-0)+0,0)","v":1}]
[null,null,null,null,null,null,null,null,null,null,null,null,null,null,null,null,null,null,null,null,null,null,null,null,null,null,null,null,null,null,null,null,null,null,null,null,null,null,null,null,null,null,null,null,null,null,null,null,null,null,null,{"$f":"IF(BC69=0,(BA70*BB69+ROUND(RAND()*(5-1)+1,0)),(BA70*BB69-ROUND(RAND()*(5-1)+1,0)))","v":97.5},{"$f":"ROUND(RAND()*(10-4)+4,0)","v":7}]
[null,null,null,{"$f":"\"Q9. Connor's motorbike can travel for \"&AZ69&\" km on \"&BA69&\" litre of fuel.\"","v":"Q9. Connor's motorbike can travel for 29 km on 2 litre of fuel."}]
[null,null,null,null,{"$f":"\" He has \"&BA70&\" litres of fuel and plans a journey of \"&AZ70&\" km.\"","v":" He has 7 litres of fuel and plans a journey of 97.5 km."},null,null,null,null,null,null,null,null,null,null,null,null,null,null,null,null,null,null,null,null,null,null,null,null,null,null,null,null,null,null,null,null,null,null,null,null,null,null,null,null,null,null,null,null,null,null,{"$f":"IF(BC69=0,\"No\",\"Yes\")","v":"Yes"}]
[null,null,null,null,"Will Connor have enough fuel for the journey?",null,null,null,null,null,null,null,null,null,null,null,null,null,null,null,null,null,null,null,null,null,null,null,null,null,null,null,null,"( Yes or No )"]
[]
[]
[null,null,null,null,null,null,null,null,null,null,null,null,null,null,null,null,null,null,null,null,null,null,null,null,null,null,null,null,null,null,null,null,null,null,null,null,null,null,null,null,null,null,null,null,null,null,null,null,null,null,{"$f":"ROUND(RAND()*(2-1)+1,0)","v":2},1,{"$f":"ROUND(RAND()*(9-2)+2,0)","v":4},{"$f":"10-BA76","v":6},{"$f":"BA76+BB76","v":10},"Girls","Boys"]
[null,null,null,{"$f":"\"Q10. The pie chart shows the number of girls in the school assembly hall on Thursday.\"","v":"Q10. The pie chart shows the number of girls in the school assembly hall on Thursday."},null,null,null,null,null,null,null,null,null,null,null,null,null,null,null,null,null,null,null,null,null,null,null,null,null,null,null,null,null,null,null,null,null,null,null,null,null,null,null,null,null,null,null,null,null,null,null,2,{"$f":"ROUND(RAND()*(7-2)+2,0)","v":3},{"$f":"8-BA77","v":5},{"$f":"BA77+BB77","v":8}]
[null,null,null,null,null,null,null,null,null,null,null,null,null,null,null,null,null,null,null,null,null,null,null,null,null,null,null,null,null,null,null,null,null,null,null,null,null,null,null,null,null,null,null,null,null,null,null,null,null,null,null,null,{"$f":"LOOKUP($AY$76,$AZ$76:$AZ$77,BA76:BA77)","v":3},{"$f":"LOOKUP($AY$76,$AZ$76:$AZ$77,BB76:BB77)","v":5},{"$f":"LOOKUP($AY$76,$AZ$76:$AZ$77,BC76:BC77)","v":8}]
[null,null,null,{"$f":"\"(a)   The pie chart is split into \"&BC78&\" equal parts.\"","v":"(a)   The pie chart is split into 8 equal parts."}]
[]
[]
[]
[]
[]
[]
[]
[]
[]
[]
[]
[]
[]
[]
[]
[]
[]
[null,null,null,null,null,{"$f":"\"What fraction of girls are in the assembly hall ?\"","v":"What fraction of girls are in the assembly hall ?"},null,null,null,null,null,null,null,null,null,null,null,null,null,null,null,null,null,null,null,null,null,null,null,null,null,null,null,null,null,null,null,null,null,null,null,null,null,null,null,null,null,null,null,null,null,{"$f":"BA78/BC78","v":0.375}]
[]
[]
[]
[null,null,null,{"$f":"\"(b)   There are \"&BC101&\" pupils in the assembly hall.\"","v":"(b)   There are 180 pupils in the assembly hall."},null,null,null,null,null,null,null,null,null,null,null,null,null,null,null,null,null,null,null,null,null,null,null,null,null,null,null,null,null,null,null,null,null,null,null,null,null,null,null,null,null,null,null,null,null,null,null,null,{"$f":"ROUND(RAND()*(8-2)+2,0)","v":4},{"$f":"BA101/BA102","v":0.8},{"$f":"BA101*BA102*ROUND(RAND()*(10-3)+3,0)","v":180}]
[null,null,null,null,null,null,null,null,null,null,null,null,null,null,null,null,null,null,null,null,null,null,null,null,null,null,null,null,null,null,null,null,null,null,null,null,null,null,null,null,null,null,null,null,null,null,null,null,null,null,null,null,{"$f":"BA101+1","v":5},null,{"$f":"BA101/BA102*BC101","v":144}]
[null,null,null,null,{"$f":"\"   On Friday ,\"","v":"   On Friday ,"},null,null,null,{"$f":"BB101","v":0.8},{"$f":" \"of the class where boys. How many boys were in the class ?\"","v":"of the class where boys. How many boys were in the class ?"}]
[]
[]
[]
[]
[null,{"$f":"\"Q11.   To compete for Britain in the Olympics 400m race you must :\"","v":"Q11.   To compete for Britain in the Olympics 400m race you must :"}]
[]
[null,null,null,null,null,null,null,null,null,null,"*",{"$f":"\"have a best time of under \"&BA114&\" seconds\"","v":"have a best time of under 46 seconds"},null,null,null,null,null,null,null,null,null,null,null,null,null,null,null,null,null,null,null,null,null,null,null,null,null,null,null,null,null,null,null,null,null,null,null,null,null,null,null,null,null,null,"T",{"$f":"ROUND(RAND()*(6-1)+1,0)","v":6}]
[null,null,null,null,null,null,null,null,null,null,"*",{"$f":"\"be over \"&BA115&\" years old\"","v":"be over 17 years old"},null,null,null,null,null,null,null,null,null,null,null,null,null,null,null,null,null,null,null,null,null,null,null,null,null,null,null,null,null,null,null,null,null,null,null,null,null,null,null,null,null,null,"A",{"$f":"ROUND(RAND()*(12-7)+7,0)","v":9}]
[null,null,null,null,null,null,null,null,null,null,"*",{"$f":"\"be under \"&BA116&\" weeks since last drugs test\"","v":"be under 21 weeks since last drugs test"},null,null,null,null,null,null,null,null,null,null,null,null,null,null,null,null,null,null,null,null,null,null,null,null,null,null,null,null,null,null,null,null,null,null,null,null,null,null,null,null,null,null,"D",{"$f":"ROUND(RAND()*(12-9)+9,0)","v":9}]
[]
[null,null,null,null,null,null,null,null,null,null,null,null,null,null,null,null,null,null,null,null,null,null,null,null,null,null,null,null,null,null,null,null,null,null,null,null,null,null,null,null,null,null,null,null,null,null,null,null,null,null,null,null,{"$f":"ROUND(RAND()*(48-43)+43,0)","v":46},null,null,null,"Name",null,null,null,"Time (secs)",null,null,null,null,null,null,null,"Name",null,null,null,"Time (secs)"]
[null,null,null,null,null,null,null,null,null,null,null,null,null,null,null,null,null,null,null,null,null,null,null,null,null,null,null,null,null,null,null,null,null,null,null,null,null,null,null,null,null,null,null,null,null,null,null,null,null,null,null,null,{"$f":"ROUND(RAND()*(20-16)+16,0)","v":17},null,{"$f":"BD110","v":6},1,"Jodie",{"$f":"BI115","v":44},null,null,{"$f":"IF($BD$110=1,($BA$114+ROUND(RAND()*(5-1)+1,0)),($BA$114-ROUND(RAND()*(5-1)+1,0)))","v":44},null,null,null,"T",null,{"$f":"BD111","v":9},1,{"$f":"BE115","v":"Jodie"},null,null,null,{"$f":"BI115","v":44},null,null,null,"T"]
[null,null,null,null,null,null,null,null,null,null,null,"Name",null,null,null,"Time (secs)",null,null,null,"Age",null,null,null,"Drugs Test",null,null,null,null,null,null,null,null,null,null,null,null,null,null,null,null,null,null,null,null,null,null,null,null,null,null,null,null,{"$f":"ROUND(RAND()*(26-10)+10,0)","v":21},null,null,2,"Jodie",{"$f":"BI116","v":20},null,null,{"$f":"IF($BD$110=2,(BA115-ROUND(RAND()*(5-1)+1,0)),(BA115+ROUND(RAND()*(5-1)+1,0)))","v":20},null,null,null,"A",null,null,2,{"$f":"BE116","v":"Jodie"},null,null,null,{"$f":"BI116","v":20},null,null,null,"A"]
[null,null,null,null,null,null,null,null,null,null,null,{"$f":"BE115","v":"Jodie"},null,null,null,{"$f":"BI115","v":44},null,null,null,{"$f":"BI116","v":20},null,null,null,{"$f":"BI117","v":19},null,null,null,null,null,null,null,null,null,null,null,null,null,null,null,null,null,null,null,null,null,null,null,null,null,null,null,null,null,null,null,3,"Jodie",19,null,null,{"$f":"IF($BD$110=3,(BA116+ROUND(RAND()*(5-1)+1,0)),(BA116-ROUND(RAND()*(5-1)+1,0)))","v":19},null,null,null,"D",null,null,3,"Jodie",null,null,null,19,null,null,null,"D"]
[null,null,null,null,null,null,null,null,null,null,null,{"$f":"BE118","v":"Connor"},null,null,null,{"$f":"BI118","v":43},null,null,null,{"$f":"BI119","v":19},null,null,null,{"$f":"BI120","v":25},null,null,null,null,null,null,null,null,null,null,null,null,null,null,null,null,null,null,null,null,null,null,null,null,null,null,null,null,null,null,null,4,"Connor",43,null,null,{"$f":"IF($BD$110=4,($BA$114+ROUND(RAND()*(5-1)+1,0)),($BA$114-ROUND(RAND()*(5-1)+1,0)))","v":43},null,null,null,"T",null,null,4,"Connor",null,null,null,43,null,null,null,"T"]
[null,null,null,null,null,null,null,null,null,null,null,{"$f":"BE121","v":"Kirsty"},null,null,null,{"$f":"BI121","v":45},null,null,null,{"$f":"BI122","v":20},null,null,null,{"$f":"BI123","v":26},null,null,null,null,null,null,null,null,null,null,null,null,null,null,null,null,null,null,null,null,null,null,null,null,null,null,null,null,null,null,null,5,"Connor",19,null,null,{"$f":"IF($BD$110=5,(BA115-ROUND(RAND()*(5-1)+1,0)),(BA115+ROUND(RAND()*(5-1)+1,0)))","v":19},null,null,null,"A",null,null,5,"Connor",null,null,null,19,null,null,null,"A"]
[null,null,null,null,null,null,null,null,null,null,null,{"$f":"BE124","v":"Joseph"},null,null,null,{"$f":"BI124","v":44},null,null,null,{"$f":"BI125","v":18},null,null,null,{"$f":"BI126","v":18},null,null,null,null,null,null,null,null,null,null,null,null,null,null,null,null,null,null,null,null,null,null,null,null,null,null,null,null,null,null,null,6,"Connor",25,null,null,{"$f":"IF($BD$110=6,(BA116+ROUND(RAND()*(5-1)+1,0)),(BA116-ROUND(RAND()*(5-1)+1,0)))","v":25},null,null,null,"D",null,null,6,"Connor",null,null,null,25,null,null,null,"D"]
[null,null,null,null,null,null,null,null,null,null,null,null,null,null,null,null,null,null,null,null,null,null,null,null,null,null,null,null,null,null,null,null,null,null,null,null,null,null,null,null,null,null,null,null,null,null,null,null,null,null,null,null,null,null,null,7,"Kirsty",45,null,null,{"$f":"IF($BD$111=7,($BA$114+ROUND(RAND()*(5-1)+1,0)),($BA$114-ROUND(RAND()*(5-1)+1,0)))","v":45},null,null,null,"T",null,null,7,"Kirsty",null,null,null,45,null,null,null,"T"]
[null,null,null,null,null,null,null,null,null,null,null,null,null,null,null,null,null,null,null,null,null,null,null,null,null,null,null,null,null,null,null,null,null,null,null,null,null,null,null,null,null,null,null,null,null,null,null,null,null,null,null,null,null,null,null,8,"Kirsty",20,null,null,{"$f":"IF($BD$111=8,(BA115-ROUND(RAND()*(5-1)+1,0)),(BA115+ROUND(RAND()*(5-1)+1,0)))","v":20},null,null,null,"A",null,null,8,"Kirsty",null,null,null,20,null,null,null,"A"]
[null,null,null,"Which two athletes will NOT qualify to compete in the Olympics ?",null,null,null,null,null,null,null,null,null,null,null,null,null,null,null,null,null,null,null,null,null,null,null,null,null,null,null,null,null,null,null,null,null,null,null,null,null,null,null,null,null,null,null,null,null,null,null,null,null,null,null,9,"Kirsty",26,null,null,{"$f":"IF($BD$111=9,(BA116+ROUND(RAND()*(5-1)+1,0)),(BA116-ROUND(RAND()*(5-1)+1,0)))","v":26},null,null,null,"D",null,null,9,"Kirsty",null,null,null,26,null,null,null,"D"]
[null,null,null,null,null,null,null,null,null,null,null,null,null,null,null,null,null,null,null,null,null,null,null,null,null,null,null,null,null,null,null,null,null,null,null,null,null,null,null,null,null,null,null,null,null,null,null,null,null,null,null,null,null,null,null,10,"Joseph",44,null,null,{"$f":"IF($BD$111=10,($BA$114+ROUND(RAND()*(5-1)+1,0)),($BA$114-ROUND(RAND()*(5-1)+1,0)))","v":44},null,null,null,"T",null,null,10,"Joseph",null,null,null,44,null,null,null,"T"]
[null,null,null,null,null,null,null,null,null,null,null,null,null,null,null,null,null,null,null,null,null,null,null,null,null,null,null,null,null,null,null,null,null,null,null,null,null,null,null,null,null,null,null,null,null,null,null,null,null,null,null,null,null,null,null,11,"Joseph",18,null,null,{"$f":"IF($BD$111=11,(BA115-ROUND(RAND()*(5-1)+1,0)),(BA115+ROUND(RAND()*(5-1)+1,0)))","v":18},null,null,null,"A",null,null,11,"Joseph",null,null,null,18,null,null,null,"A"]
[null,null,null,null,null,null,null,null,null,null,null,null,null,null,null,null,null,null,null,null,null,null,null,null,null,null,null,null,null,null,null,null,null,null,null,null,null,null,null,null,null,null,null,null,null,null,null,null,null,null,null,null,null,null,null,12,"Joseph",18,null,null,{"$f":"IF($BD$111=12,(BA116+ROUND(RAND()*(5-1)+1,0)),(BA116-ROUND(RAND()*(5-1)+1,0)))","v":18},null,null,null,"D",null,null,12,"Joseph",null,null,null,18,null,null,null,"D"]
[null,null,null,null,null,null,null,null,null,null,null,null,null,null,null,null,null,null,null,null,null,null,null,null,null,null,null,null,null,null,null,null,null,null,null,null,null,null,null,null,null,null,null,null,null,null,null,null,null,null,null,null,null,null,null,null,{"$f":"LOOKUP(BC115,BD115:BD126,BE115:BE126)","v":"Connor"},null,null,null,null,null,null,null,null,null,null,null,{"$f":"LOOKUP(BO115,BP115:BP126,BQ115:BQ126)","v":"Kirsty"}]
[]
[null,null,null,null,null,null,null,null,null,null,null,null,null,null,null,null,null,null,null,null,null,null,null,null,null,null,null,null,null,null,null,null,null,null,null,null,null,null,null,null,null,null,null,null,null,null,null,null,null,null,null,null,{"$f":"ROUND(RAND()*(5-1)+1,0)","v":1}]
[null,{"$f":"\"Q12.   \"&BF135&\" people were asked their favourite sport.\"","v":"Q12.   56 people were asked their favourite sport."},null,null,null,null,null,null,null,null,null,null,null,null,null,null,null,null,null,null,null,null,null,null,null,null,null,null,null,null,null,null,null,null,null,null,null,null,null,null,null,null,null,null,null,null,null,null,null,null,null,null,null,null,null,1,"Football",{"$f":"IF($BA$129=1,15+ROUND(RAND()*(5-2)+2,0),ROUND(RAND()*(15-5)+5,0))","v":18}]
[null,null,null,null,null,null,null,null,null,null,null,null,null,null,null,null,null,null,null,null,null,null,null,null,null,null,null,null,null,null,null,null,null,null,null,null,null,null,null,null,null,null,null,null,null,null,null,null,null,null,null,null,null,null,null,2,"Badminton",{"$f":"IF($BA$129=2,15+ROUND(RAND()*(5-2)+2,0),ROUND(RAND()*(15-5)+5,0))","v":8}]
[null,null,null,null,null,null,null,null,null,null,null,null,null,null,null,null,null,null,null,null,null,null,null,null,null,null,null,null,null,null,null,null,null,null,null,null,null,null,null,null,null,null,null,null,null,null,null,null,null,null,null,null,null,null,null,3,"Basketball",{"$f":"IF($BA$129=3,15+ROUND(RAND()*(5-2)+2,0),ROUND(RAND()*(15-5)+5,0))","v":8}]
[null,null,null,null,null,null,null,null,null,null,null,null,null,null,null,null,null,null,null,null,null,null,null,null,null,null,null,null,null,null,null,null,null,null,null,null,null,null,null,null,null,null,null,null,null,null,null,null,null,null,null,null,null,null,null,4,"Orienteering",{"$f":"IF($BA$129=4,15+ROUND(RAND()*(5-2)+2,0),ROUND(RAND()*(15-5)+5,0))","v":12}]
[null,null,null,null,null,null,null,null,null,null,null,null,null,null,null,null,null,null,null,null,null,null,null,null,null,null,null,null,null,null,null,null,null,null,null,null,null,null,null,null,null,null,null,null,null,null,null,null,null,null,null,null,null,null,null,5,"Swimming",{"$f":"IF($BA$129=5,15+ROUND(RAND()*(5-2)+2,0),ROUND(RAND()*(15-5)+5,0))","v":10}]
[null,null,null,null,null,null,null,null,null,null,null,null,null,null,null,null,null,null,null,null,null,null,null,null,null,null,null,null,null,null,null,null,null,null,null,null,null,null,null,null,null,null,null,null,null,null,null,null,null,null,null,null,null,null,null,null,{"$f":"LOOKUP(BA129,BD130:BD134,BE130:BE134)","v":"Football"},{"$f":"SUM(BF130:BF134)","v":56}]
[]
[]
[]
[]
[]
[]
[]
[]
[]
[]
[]
[]
[]
[]
[]
[]
[null,null,null,"One person from the group is picked at random."]
[]
[null,null,null,"Which flavour of crisps is most likely to be their sport ? "]

{"sheet":"N3_Practice_1_Q's (2)","index":1,"n_rows":52,"n_cols":55,"rows_kept":52,"cut":false,"hidden":true,"merged":[[50,33,50,36],[1,1,5,42],[9,33,9,36],[15,33,15,36],[21,33,21,36],[27,33,27,36],[28,33,28,36]]}
[]
[null,"N3 Numracy - Practice Questions                                                                                                                                                                                                            Created by Mr.Lafferty@mathsrevision.com "]
[]
[]
[]
[]
[null,null,null,null,null,null,null,null,null,null,null,null,null,null,null,null,null,null,null,null,null,null,null,null,null,null,null,null,null,null,null,null,null,null,null,null,null,null,null,null,null,null,null,null,null,null,null,null,null,null,null,25]
[null,null,null,null,null,null,null,null,null,null,null,null,null,null,null,null,null,null,null,null,null,null,null,null,null,null,null,null,null,null,null,null,null,null,null,null,null,null,null,null,null,null,null,null,null,null,null,null,null,null,null,{"$f":"ROUND(RAND()*(6-1)+1,0)*10","v":10},{"$f":"IF(AZ8=60,25,AZ8)","v":10}]
[null,null,null,{"$f":"\"Q9. Joseph weekly wage is £\"&TEXT(AZ9,0)&\". His brother Luke earns \"&BA8&\"% more than him.\"","v":"Q9. Joseph weekly wage is £600. His brother Luke earns 10% more than him."},null,null,null,null,null,null,null,null,null,null,null,null,null,null,null,null,null,null,null,null,null,null,null,null,null,null,null,null,null,null,null,null,null,null,null,null,null,null,null,null,null,null,null,null,null,null,null,{"$f":"ROUND(RAND()*(15-3)+3,0)*100","v":600}]
[null,null,null,null,{"$f":"\" How much does his brother earn each week ?\"","v":" How much does his brother earn each week ?"},null,null,null,null,null,null,null,null,null,null,null,null,null,null,null,null,null,null,null,null,null,null,null,null,null,null,null,null,null,null,null,null,null,null,null,null,null,null,null,null,null,null,null,null,null,null,{"$f":"AZ9+(BA8/100*AZ9)","v":660}]
[]
[]
[]
[null,null,null,null,null,null,null,null,null,null,null,null,null,null,null,null,null,null,null,null,null,null,null,null,null,null,null,null,null,null,null,null,null,null,null,null,null,null,null,null,null,null,null,null,null,null,null,null,null,null,null,{"$f":"ROUND(RAND()*(199-115)+115,0)","v":134}]
[null,null,null,{"$f":"\"Q10. The average number of beans in a tin of beans is \"&TEXT(AZ14,0)&\". \"","v":"Q10. The average number of beans in a tin of beans is 134. "},null,null,null,null,null,null,null,null,null,null,null,null,null,null,null,null,null,null,null,null,null,null,null,null,null,null,null,null,null,null,null,null,null,null,null,null,null,null,null,null,null,null,null,null,null,null,null,{"$f":"ROUND(RAND()*(30-12)+12,0)","v":17}]
[null,null,null,null,{"$f":"\" How many beans in \"&AZ15&\" tins ?\"","v":" How many beans in 17 tins ?"},null,null,null,null,null,null,null,null,null,null,null,null,null,null,null,null,null,null,null,null,null,null,null,null,null,null,null,null,null,null,null,null,null,null,null,null,null,null,null,null,null,null,null,null,null,null,{"$f":"AZ14*AZ15","v":2278}]
[]
[]
[null,null,null,null,null,null,null,null,null,null,null,null,null,null,null,null,null,null,null,null,null,null,null,null,null,null,null,null,null,null,null,null,null,null,null,null,null,null,null,null,null,null,null,null,null,null,null,null,null,null,null,{"$f":"ROUND(RAND()*(11-4)+4,0)","v":5},{"$f":"ROUND(RAND()*(11-2)+2,0)","v":6}]
[null,null,null,null,null,null,null,null,null,null,null,null,null,null,null,null,null,null,null,null,null,null,null,null,null,null,null,null,null,null,null,null,null,null,null,null,null,null,null,null,null,null,null,null,null,null,null,null,null,null,null,{"$f":"ROUND(RAND()*(59-1)+1,0)","v":55},{"$f":"ROUND(RAND()*(59-1)+1,0)","v":11}]
[null,null,null,{"$f":"\"Q11. Kirsty is going on holiday. She left Edinburgh at \"&AZ21&\". \"","v":"Q11. Kirsty is going on holiday. She left Edinburgh at 05:55. "},null,null,null,null,null,null,null,null,null,null,null,null,null,null,null,null,null,null,null,null,null,null,null,null,null,null,null,null,null,null,null,null,null,null,null,null,null,null,null,null,null,null,null,null,null,null,null,{"$f":"TEXT(TIME(AZ19,AZ20,0),\"hh:mm\")","v":"05:55"},{"$f":"TEXT(TIME(BA19,BA20,0),\"hh:mm\")","v":"06:11"}]
[null,null,null,null,{"$f":"\" The journey took \"&BA19&\" hours and \"&BA20&\" minutes.\"","v":" The journey took 6 hours and 11 minutes."},null,null,null,null,null,null,null,null,null,null,null,null,null,null,null,null,null,null,null,null,null,null,null,null,null,null,null,null,null,null,null,null,null,null,null,null,null,null,null,null,null,null,null,null,null,null,{"$f":"TEXT(AZ21+BA21,\"hh:mm\")","v":"12:06"}]
[null,null,null,null,{"$f":"\"At what time did Kirsty arrive at her destination ?\"","v":"At what time did Kirsty arrive at her destination ?"},null,null,null,null,null,null,null,null,null,null,null,null,null,null,null,null,null,null,null,null,null,null,null,null,null,null,null,null,null,null,null,null,null,null,null,null,null,null,null,null,null,null,null,null,null,null,{"$f":"TEXT(AZ22,\"hh:mm\")","v":"12:06"}]
[]
[null,null,null,null,null,null,null,null,null,null,null,null,null,null,null,null,null,null,null,null,null,null,null,null,null,null,null,null,null,null,null,null,null,null,null,null,null,null,null,null,null,null,null,null,null,null,null,null,null,null,null,{"$f":"ROUND(RAND()*(10-1)+1,0)*0.5","v":2},{"$f":"AZ25*1000","v":2000}]
[null,null,null,null,null,null,null,null,null,null,null,null,null,null,null,null,null,null,null,null,null,null,null,null,null,null,null,null,null,null,null,null,null,null,null,null,null,null,null,null,null,null,null,null,null,null,null,null,null,null,null,{"$f":"ROUND(ROUND(RAND()*(0.8-0.6)+0.6,1)*BA26,-1)","v":400},{"$f":"ROUND(BA25/3,-1)","v":670}]
[null,null,null,{"$f":"\"Q12. Three different sized bottles of orange juice hold \"&AZ26&\"ml, \"&AZ27&\"ml and \"&BA27&\"ml of juice.\"","v":"Q12. Three different sized bottles of orange juice hold 400ml, 740ml and 940ml of juice."},null,null,null,null,null,null,null,null,null,null,null,null,null,null,null,null,null,null,null,null,null,null,null,null,null,null,null,null,null,null,null,null,null,null,null,null,null,null,null,null,null,null,null,null,null,null,null,{"$f":"ROUND(ROUND(RAND()*(1.1-0.9)+0.9,1)*BA26,-1)","v":740},{"$f":"ROUND(ROUND(RAND()*(1.4-1.2)+1.2,1)*BA26,-1)","v":940}]
[null,null,null,null,{"$f":"\"Can a \"&AZ25&\" litre bottle of orange juice fill the three smaller bottles of orange juice ?\"","v":"Can a 2 litre bottle of orange juice fill the three smaller bottles of orange juice ?"},null,null,null,null,null,null,null,null,null,null,null,null,null,null,null,null,null,null,null,null,null,null,null,null,null,null,null,null,null,null,null,null,null,null,null,null,null,null,null,null,null,null,null,null,null,null,{"$f":"IF(BA28<=BA25,\"Yes\",\"No\")","v":"No"},{"$f":"AZ26+AZ27+BA27","v":2080}]
[null,null,null,null,null,null,null,null,null,null,null,null,null,null,null,null,null,null,null,null,null,null,null,null,null,null,null,null,null,null,null,null,null,"( Yes or No )"]
[null,null,null,null,null,null,null,null,null,null,null,null,null,null,null,null,null,null,null,null,null,null,null,null,null,null,null,null,null,null,null,null,null,null,null,null,null,null,null,null,null,null,null,null,null,null,null,null,null,null,null,null,null,{"$f":"AZ33-AZ31","v":{"$error":"#REF!"}},{"$f":"BB30/2","v":{"$error":"#REF!"}}]
[null,null,null,null,null,null,null,null,null,null,null,null,null,null,null,null,null,null,null,null,null,null,null,null,null,null,null,null,null,null,null,null,null,null,null,null,null,null,null,null,null,null,null,null,null,null,null,null,null,null,null,{"$f":"ROUND(RAND()*(7-1)+1,0)*10","v":20},null,{"$f":"ROUND(RAND()*((BC30-1)-2)+2,0)*2+AZ31","v":{"$error":"#REF!"}},{"$f":"BB31/10","v":{"$error":"#REF!"}}]
[null,null,null,null,null,null,null,null,null,null,null,null,null,null,null,null,null,null,null,null,null,null,null,null,null,null,null,null,null,null,null,null,null,null,null,null,null,null,null,null,null,null,null,null,null,null,null,null,null,null,null,{"$f":"#REF!+10","v":{"$error":"#REF!"}}]
[null,null,null,null,null,null,null,null,null,null,null,null,null,null,null,null,null,null,null,null,null,null,null,null,null,null,null,null,null,null,null,null,null,null,null,null,null,null,null,null,null,null,null,null,null,null,null,null,null,null,null,{"$f":"AZ32+10","v":{"$error":"#REF!"}},null,{"$f":"ROUND(#REF!,-1)","v":{"$error":"#REF!"}}]
[]
[]
[]
[]
[]
[]
[]
[]
[]
[]
[]
[]
[]
[]
[null,null,null,null,null,null,null,null,null,null,null,null,null,null,null,null,null,null,null,null,null,null,null,null,null,null,null,null,null,null,null,null,null,null,null,null,null,null,null,null,null,null,null,null,null,null,null,null,null,null,null,{"$f":"ROUND(RAND()*(15-6)+6,1)","v":11.5},{"$f":"ROUND(RAND()*(9-3)+3,0)","v":3}]
[null,null,null,null,null,null,null,null,null,null,null,null,null,null,null,null,null,null,null,null,null,null,null,null,null,null,null,null,null,null,null,null,null,null,null,null,null,null,null,null,null,null,null,null,null,null,null,null,null,null,null,{"$f":"ROUNDUP(AZ48*BA48,0)","v":35}]
[null,null,null,{"$f":"\"Q8. Dylan is moving house. He needs to transport \"&AZ49&\" boxes using his van.\"","v":"Q8. Dylan is moving house. He needs to transport 35 boxes using his van."}]
[null,null,null,null,{"$f":"\" His van can only hold \"&BA48&\" boxes at a time.\"","v":" His van can only hold 3 boxes at a time."},null,null,null,null,null,null,null,null,null,null,null,null,null,null,null,null,null,null,null,null,null,null,null,null,null,null,null,null,null,null,null,null,"trips",null,null,null,null,null,null,null,null,null,null,null,null,null,{"$f":"ROUNDUP(AZ49/BA48,0)","v":12}]
[null,null,null,null,"How many trips will Dylan need to make to transport all the boxes to his new home."]